fUSD/lending_fUSD_20251013
["ID","MTS","AMOUNT","RATE_DAILY","PERIOD"]
[391119427,1760361744840,-10000.0,0.00012535,2]
[391119428,1760361745051,1200.0,0.00012534,2]
[391119429,1760361745164,-10000.0,0.00012535,2]
[391119430,1760361745528,-47241.0,0.00012535,2]
[391119431,1760361746153,-369.52490519,0.00012535,2]
[391119432,1760361746302,-10000.0,0.00012535,2]
[391119433,1760361746646,-10000.0,0.00012535,2]
[391119434,1760361746990,-10000.0,0.00012535,2]
[391119435,1760361749154,-156.57366959,0.00012535,2]
[391119436,1760361750121,-5000.0,0.00012535,2]
[391119437,1760361750499,-5000.0,0.00012535,2]
[391119438,1760361750811,-5000.0,0.00012535,2]
[391119439,1760361751169,-5000.0,0.00012535,2]
[391119440,1760361751488,-5000.0,0.00012535,2]
[391119441,1760361751822,-5000.0,0.00012535,2]
[391119442,1760361752154,-5000.0,0.00012535,2]
[391119443,1760361752519,-5000.0,0.00012535,2]
[391119444,1760361754549,-5000.0,0.00012535,2]
[391119445,1760361754603,-174.35017206,0.00012535,2]
[391119446,1760361755099,-5000.0,0.00012535,2]
[391119447,1760361755442,-5000.0,0.00012535,2]
[391119448,1760361756010,500.0,0.00012534,2]
[391119449,1760361756052,500.0,0.00012534,2]
[391119450,1760361756097,500.0,0.00012534,2]
[391119451,1760361756139,500.0,0.00012534,2]
[391119452,1760361756179,225.33999425,0.00012534,2]
[391119453,1760361756207,-5000.0,0.00012535,2]
[391119454,1760361756251,500.0,0.00012534,2]
[391119455,1760361756290,500.0,0.00012534,2]
[391119456,1760361756330,500.0,0.00012534,2]
[391119457,1760361756373,500.0,0.00012534,2]
[391119458,1760361756410,500.0,0.00012534,2]
[391119459,1760361756449,500.0,0.00012534,2]
[391119460,1760361756476,-161.13120818,0.00012535,2]
[391119461,1760361759198,-442.01546866,0.00012535,2]
[391119462,1760361761514,-208.79,0.00012535,2]
[391119463,1760361764183,-200.0,0.00012535,2]
[391119464,1760361768580,-5000.0,0.00012535,2]
[391119465,1760361775054,410.258419,0.00012472,2]
[391119466,1760361776479,-228.36034156,0.00012535,2]
[391119467,1760361779867,-323.00998445,0.00012534,2]
[391119468,1760361781196,165.5776099,0.00012435,2]
[391119469,1760361781286,-176.99001555,0.00012534,2]
[391119470,1760361781308,-1.20411793,0.00012534,2]
[391119471,1760361782722,-498.79588207,0.00012534,2]
[391119472,1760361782743,-129.04465384,0.00012534,2]
[391119473,1760361788023,5101.28469,7.945e-05,2]
[391119474,1760361789018,-224.07164757,0.00012534,2]
[391119475,1760361789041,-66.88145343,0.00012534,2]
[391119476,1760361790661,-378.91989744,0.00012534,2]
[391119477,1760361792097,-54.19864913,0.00012534,2]
[391119478,1760361792119,-146.88369859,0.00012534,2]
[391119479,1760361795939,-172.28817662,0.00012534,2]
[391119480,1760361795968,-500.0,0.00012534,2]
[391119481,1760361795993,-116.38058637,0.00012534,2]
[391119482,1760361797530,-383.61941363,0.00012534,2]
[391119483,1760361797553,-500.0,0.00012534,2]
[391119484,1760361797576,-500.0,0.00012534,2]
[391119485,1760361797601,-500.0,0.00012534,2]
[391119486,1760361797626,-500.0,0.00012534,2]
[391119487,1760361797650,-500.0,0.00012534,2]
[391119488,1760361797677,-500.0,0.00012534,2]
[391119489,1760361797704,-500.0,0.00012534,2]
[391119490,1760361797728,-500.0,0.00012534,2]
[391119491,1760361797754,-500.0,0.00012534,2]
[391119492,1760361797777,-500.0,0.00012534,2]
[391119493,1760361797801,-500.0,0.00012534,2]
[391119494,1760361797824,-500.0,0.00012534,2]
[391119495,1760361797849,-500.0,0.00012534,2]
[391119496,1760361797874,-500.0,0.00012534,2]
[391119497,1760361797898,-500.0,0.00012534,2]
[391119498,1760361797922,-500.0,0.00012534,2]
[391119499,1760361797945,-500.0,0.00012534,2]
[391119500,1760361797970,-500.0,0.00012534,2]
[391119501,1760361797994,-500.0,0.00012534,2]
[391119502,1760361798017,-116.38058637,0.00012534,2]
[391119503,1760361798211,-383.61941363,0.00012534,2]
[391119504,1760361798234,-500.0,0.00012534,2]
[391119505,1760361798258,-500.0,0.00012534,2]
[391119506,1760361798282,-500.0,0.00012534,2]
[391119507,1760361798306,-500.0,0.00012534,2]
[391119508,1760361798330,-500.0,0.00012534,2]
[391119509,1760361798354,-500.0,0.00012534,2]
[391119510,1760361798379,-500.0,0.00012534,2]
[391119511,1760361798402,-500.0,0.00012534,2]
[391119512,1760361798426,-500.0,0.00012534,2]
[391119513,1760361798450,-500.0,0.00012534,2]
[391119514,1760361798474,-500.0,0.00012534,2]
[391119515,1760361798497,-500.0,0.00012534,2]
[391119516,1760361798521,-500.0,0.00012534,2]
[391119517,1760361798545,-500.0,0.00012534,2]
[391119518,1760361798573,-500.0,0.00012534,2]
[391119519,1760361798598,-500.0,0.00012534,2]
[391119520,1760361798622,-500.0,0.00012534,2]
[391119521,1760361798646,-591.30088482,0.00012534,2]
[391119522,1760361798678,-500.0,0.00012534,2]
[391119523,1760361798704,-25.07970155,0.00012534,2]
[391119524,1760361798892,-250.0,0.00012534,2]
[391119525,1760361803229,201.55781785,0.00012435,2]
[391119526,1760361804681,-224.92029845,0.00012534,2]
[391119527,1760361804707,-203.38939099,0.00012534,2]
[391119528,1760361805181,-296.61060901,0.00012534,2]
[391119529,1760361805208,-500.0,0.00012534,2]
[391119530,1760361805234,-150.0,0.00012534,2]
[391119531,1760361805260,-500.0,0.00012534,2]
[391119532,1760361805288,-500.0,0.00012534,2]
[391119533,1760361805315,-500.0,0.00012534,2]
[391119534,1760361805345,-500.0,0.00012534,2]
[391119535,1760361805373,-500.0,0.00012534,2]
[391119536,1760361805397,-2000.0,0.00012535,2]
[391119537,1760361805421,-4553.38939099,0.00012535,2]
[391119538,1760361806161,-331.12591197,0.00012535,2]
[391119539,1760361807651,-10000.0,0.00012535,2]
[391119540,1760361808367,-410.30064291,0.00012535,2]
[391119541,1760361809378,-10000.0,0.00012535,2]
[391119542,1760361810904,-10000.0,0.00012535,2]
[391119543,1760361811200,348.97480102,0.00012434,2]
[391119544,1760361812162,-10000.0,0.00012535,2]
[391119545,1760361813024,-363.70737714,0.00012535,2]
[391119546,1760361814015,-10000.0,0.00012535,2]
[391119547,1760361814408,-302.29262286,0.00012535,2]
[391119548,1760361816289,-215.86258775,0.00012535,2]
[391119549,1760361819888,-601.11647059,0.00012535,2]
[391119550,1760361822449,-310.22959107,0.00012535,2]
[391119551,1760361824977,-155.72143742,0.00012534,2]
[391119552,1760361826326,-344.27856258,0.00012534,2]
[391119553,1760361826349,-9655.72143742,0.00012535,2]
[391119555,1760361841771,-287.36383584,0.00012534,2]
[391119556,1760361844220,-12.63616416,0.00012534,2]
[391119557,1760361844243,-169.06643337,0.00012534,2]
[391119558,1760361846169,-130.93356663,0.00012534,2]
[391119559,1760361846192,-143.25611082,0.00012534,2]
[391119560,1760361846733,-6.74388918,0.00012534,2]
[391119561,1760361846758,-2000.0,0.00012535,2]
[391119562,1760361846782,-7993.25611082,0.00012535,2]
[391119563,1760361847778,-306.13511372,0.00012535,2]
[391119564,1760361848002,-10000.0,0.00012535,2]
[391119565,1760361850847,-307.20622567,0.00012535,2]
[391119566,1760361852814,-258.71690701,0.00012535,2]
[391119567,1760361856429,-369.31826138,0.00012534,2]
[391119568,1760361858721,-130.68173862,0.00012534,2]
[391119569,1760361858743,-119.98476397,0.00012535,2]
[391119570,1760361860144,-283.51950359,0.00012535,2]
[391119571,1760361860194,-20000.0,0.00012535,2]
[391119572,1760361861362,-20000.0,0.00012535,2]
[391119573,1760361862984,-286.02848769,0.00012535,2]
[391119574,1760361863012,-20000.0,0.00012535,2]
[391119575,1760361864155,-20000.0,0.00012535,2]
[391119576,1760361865287,-280.24649315,0.00012535,2]
[391119577,1760361868841,-350.59737714,0.00012535,2]
[391119578,1760361870739,-636.29262286,0.00012535,2]
[391119579,1760361871284,-12000.0,0.00012535,2]
[391119580,1760361886870,-305.9879914,0.00012535,2]
[391119581,1760361889288,-349.3596096,0.00012534,2]
[391119582,1760361892055,-150.6403904,0.00012534,2]
[391119583,1760361892076,-229.99671392,0.00012535,2]
[391119584,1760361894035,-228.95976752,0.00012535,2]
[391119585,1760361895818,-369.79883816,0.00012535,2]
[391119586,1760361896906,-30000.0,0.00012535,2]
[391119587,1760361898201,-30000.0,0.00012535,2]
[391119588,1760361899783,-200.15240599,0.00012535,2]
[391119589,1760361900186,-30000.0,0.00012535,2]
[391119590,1760361901550,-300.0,0.00012534,2]
[391119591,1760361901575,-1200.0,0.00012534,2]
[391119592,1760361901599,-300.0,0.00012534,2]
[391119593,1760361901625,-300.0,0.00012534,2]
[391119594,1760361901650,-27900.0,0.00012535,2]
[391119595,1760361903135,-30000.0,0.00012535,2]
[391119597,1760361916452,-333.5548721,0.00012535,2]
[391119598,1760361919291,-349.57071686,0.00012535,2]
[391119599,1760361921735,-167.60418897,0.00012535,2]
[391119600,1760361924261,-225.9452009,0.00012534,2]
[391119606,1760361925345,1809.494607,0.00012472,2]
[391119607,1760361926094,-159.37659119,0.00012534,2]
[391119608,1760361928513,-114.67820791,0.00012534,2]
[391119609,1760361928539,-72.20697815,0.00012534,2]
[391119610,1760361931473,163.43238278,0.00012435,2]
[391119611,1760361933061,-170.92434197,0.00012532,2]
[391119612,1760361933553,203.56576394,0.00012435,2]
[391119613,1760361934397,1394.23,6.738e-05,2]
[391119614,1760361934596,1394.23,7.092e-05,2]
[391119615,1760361934848,1394.23,7.447e-05,2]
[391119616,1760361935046,-290.09813136,0.00012532,2]
[391119617,1760361935124,1394.23,7.802e-05,2]
[391119618,1760361935352,1394.23,8.156e-05,2]
[391119619,1760361935556,1394.23,8.511e-05,2]
[391119620,1760361935769,921.86660137,8.865e-05,2]
[391119621,1760361935799,472.36339863,8.865e-05,2]
[391119622,1760361936191,1394.23,9.22e-05,2]
[391119623,1760361936422,1394.23,9.575e-05,2]
[391119624,1760361936625,1394.23,9.929e-05,2]
[391119625,1760361936828,1394.23,0.00010284,2]
[391119626,1760361937062,1394.23,0.00010639,2]
[391119627,1760361937289,1394.23,0.00010993,2]
[391119628,1760361937484,1394.23,0.00011348,2]
[391119629,1760361937887,1394.23,0.00011703,2]
[391119630,1760361938114,1394.23,0.00012057,2]
[391119631,1760361939528,-1394.23,0.00012412,2]
[391119632,1760361939555,-2038.97752667,0.00012532,2]
[391119633,1760361939583,-427.79302185,0.00012534,2]
[391119634,1760361939609,-500.0,0.00012534,2]
[391119635,1760361939635,-500.0,0.00012534,2]
[391119636,1760361939662,-500.0,0.00012534,2]
[391119637,1760361939689,-500.0,0.00012534,2]
[391119638,1760361939719,-500.0,0.00012534,2]
[391119639,1760361939749,-500.0,0.00012534,2]
[391119640,1760361939777,-500.0,0.00012534,2]
[391119641,1760361939807,-500.0,0.00012534,2]
[391119642,1760361939837,-500.0,0.00012534,2]
[391119643,1760361939866,-500.0,0.00012534,2]
[391119644,1760361939892,-500.0,0.00012534,2]
[391119645,1760361939919,-500.0,0.00012534,2]
[391119646,1760361939946,-500.0,0.00012534,2]
[391119647,1760361939972,-500.0,0.00012534,2]
[391119648,1760361939999,-500.0,0.00012534,2]
[391119649,1760361940025,-500.0,0.00012534,2]
[391119650,1760361940051,-500.0,0.00012534,2]
[391119651,1760361940079,-500.0,0.00012534,2]
[391119652,1760361940110,-500.0,0.00012534,2]
[391119653,1760361940137,-500.0,0.00012534,2]
[391119654,1760361940162,-500.0,0.00012534,2]
[391119655,1760361940188,-500.0,0.00012534,2]
[391119656,1760361940216,-500.0,0.00012534,2]
[391119657,1760361940245,-500.0,0.00012534,2]
[391119658,1760361940274,-500.0,0.00012534,2]
[391119659,1760361940301,-500.0,0.00012534,2]
[391119660,1760361940327,-500.0,0.00012534,2]
[391119661,1760361940357,-500.0,0.00012534,2]
[391119662,1760361940384,-500.0,0.00012534,2]
[391119663,1760361940410,-500.0,0.00012534,2]
[391119664,1760361940435,-500.0,0.00012534,2]
[391119665,1760361940462,-493.91781322,0.00012534,2]
[391119666,1760361940491,-500.0,0.00012534,2]
[391119667,1760361940520,-500.0,0.00012534,2]
[391119668,1760361940544,-9145.08163826,0.00012535,2]
[391119669,1760361940772,-391.04471857,0.00012534,2]
[391119670,1760361941772,-108.95528143,0.00012534,2]
[391119671,1760361941799,-74.83937876,0.00012534,2]
[391119672,1760361943173,-196.89628975,0.00012534,2]
[391119673,1760361950657,-228.26433149,0.00012534,2]
[391119674,1760361950684,-500.0,0.00012534,2]
[391119675,1760361950713,-500.0,0.00012534,2]
[391119676,1760361950738,-500.0,0.00012534,2]
[391119677,1760361950765,-450.0,0.00012534,2]
[391119678,1760361950792,-500.0,0.00012534,2]
[391119679,1760361950819,-500.0,0.00012534,2]
[391119680,1760361950846,-500.0,0.00012534,2]
[391119681,1760361950872,-500.0,0.00012534,2]
[391119682,1760361950901,-25821.73566851,0.00012535,2]
[391119683,1760361951276,-210.0969119,0.00012535,2]
[391119684,1760361951471,500.0,0.00028,120]
[391119685,1760361952485,-500.0,0.00012534,2]
[391119686,1760361952510,-29500.0,0.00012535,2]
[391119687,1760361956217,-245.73474416,0.00012535,2]
[391119689,1760361960380,-178.91768613,0.00012535,2]
[391119690,1760361976479,-300.0,0.00012534,2]
[391119691,1760361976502,-33.39557689,0.00012535,2]
[391119692,1760361980368,-182.21264675,0.00012535,2]
[391119693,1760361983547,-172.44184616,0.00012534,2]
[391119694,1760361988523,-156.45177446,0.00012534,2]
[391119695,1760361990388,-171.10637938,0.00012534,2]
[391119696,1760361990417,-40.83932332,0.00012535,2]
[391119698,1760361997473,-180.72672731,0.00012535,2]
[391119699,1760362000276,-162.67525584,0.00012535,2]
[391119700,1760362005121,-584.46705304,0.00012535,2]
[391119701,1760362022288,-300.0,0.00012435,2]
[391119702,1760362023231,-433.20668729,0.00012435,2]
[391119703,1760362023259,-150.0,0.00012534,2]
[391119704,1760362023284,-500.0,0.00012534,2]
[391119705,1760362023308,-916.79331271,0.00012535,2]
[391119706,1760362028409,-288.82585269,0.00012534,2]
[391119707,1760362032322,-153.62668335,0.00012527,2]
[391119708,1760362037747,3000.0,0.0002876,120]
[391119709,1760362037804,1000.0,0.0002876,120]
[391119710,1760362038656,-46.37331665,0.00012527,2]
[391119711,1760362038679,-151.0,0.00012527,2]
[391119712,1760362038701,-151.0,0.00012527,2]
[391119713,1760362038723,-0.88367168,0.00012527,2]
[391119714,1760362044562,-150.11632832,0.00012527,2]
[391119715,1760362044587,-148.93729149,0.00012527,2]
[391119716,1760362046903,-187.12457914,0.00012526,2]
[391119717,1760362052199,-1012.87542086,0.00012526,2]
[391119718,1760362052223,-759.63,0.00012527,2]
[391119719,1760362052249,-2.06270851,0.00012527,2]
[391119720,1760362052273,-500.0,0.00012527,2]
[391119721,1760362052298,-151.0,0.00012527,2]
[391119722,1760362052322,-500.0,0.00012527,2]
[391119723,1760362052348,-151.0,0.00012527,2]
[391119724,1760362052373,-500.0,0.00012527,2]
[391119725,1760362052399,-151.0,0.00012527,2]
[391119726,1760362052423,-500.0,0.00012527,2]
[391119727,1760362052447,-151.0,0.00012527,2]
[391119728,1760362052472,-151.0,0.00012527,2]
[391119729,1760362052497,-151.0,0.00012527,2]
[391119730,1760362052520,-151.0,0.00012527,2]
[391119731,1760362052545,-151.0,0.00012527,2]
[391119732,1760362052569,-151.0,0.00012527,2]
[391119733,1760362052595,-151.0,0.00012527,2]
[391119734,1760362053016,-151.0,0.00012527,2]
[391119735,1760362053041,-151.0,0.00012527,2]
[391119736,1760362053067,-151.0,0.00012527,2]
[391119737,1760362053091,-151.0,0.00012527,2]
[391119738,1760362053116,-151.0,0.00012527,2]
[391119739,1760362053141,-151.0,0.00012527,2]
[391119740,1760362053168,-151.0,0.00012527,2]
[391119741,1760362053193,-151.0,0.00012527,2]
[391119742,1760362053217,-151.0,0.00012527,2]
[391119743,1760362053241,-151.0,0.00012527,2]
[391119744,1760362053266,-151.0,0.00012527,2]
[391119745,1760362053288,-200.0,0.00012527,2]
[391119746,1760362053311,-151.0,0.00012527,2]
[391119747,1760362053334,-151.0,0.00012527,2]
[391119748,1760362053356,-151.0,0.00012527,2]
[391119749,1760362053379,-151.0,0.00012527,2]
[391119750,1760362053402,-151.0,0.00012527,2]
[391119751,1760362053426,-151.0,0.00012527,2]
[391119752,1760362053448,-151.0,0.00012527,2]
[391119753,1760362053471,-151.0,0.00012527,2]
[391119754,1760362053494,-11.17414731,0.00012534,2]
[391119755,1760362053518,-1172.64654408,0.00012534,3]
[391119756,1760362053545,-247.79421302,0.00012534,2]
[391119757,1760362053568,-5214.81696622,0.00012535,2]
[391119759,1760362087761,-300.0,0.00012526,2]
[391119760,1760362087786,-151.0,0.00012527,2]
[391119761,1760362087808,-151.0,0.00012527,2]
[391119762,1760362087829,-93.70097785,0.00012527,2]
[391119763,1760362094544,-163.43238277,0.00012435,2]
[391119764,1760362094566,-11.14281621,0.00012527,2]
[391119765,1760362111381,-160.64682573,0.00012435,2]
[391119766,1760362111490,5000.0,0.00028767,120]
[391119767,1760362116126,-168.38930451,0.00012434,2]
[391119768,1760362118704,-344.72979407,0.00012434,2]
[391119769,1760362125257,-473.77090142,0.00012434,2]
[391119770,1760362125280,-167.28672929,0.00012435,2]
[391119771,1760362141804,-275.18382297,0.00012435,2]
[391119772,1760362145404,-227.19353177,0.00012435,2]
[391119773,1760362150315,-244.43402588,0.00012435,2]
[391119774,1760362153256,-187.81951082,0.00012435,2]
[391119775,1760362156374,-201.08234772,0.00012435,2]
[391119777,1760362158677,-224.81617703,0.00012435,2]
[391119778,1760362160668,-163.67130053,0.00012435,2]
[391119779,1760362164313,-346.15254955,0.00012435,2]
[391119780,1760362166840,-180.61311178,0.00012435,2]
[391119781,1760362167342,250.0,0.00012968,7]
[391119782,1760362186396,-171.33213783,0.00012435,2]
[391119783,1760362188197,-224.20039809,0.00012435,2]
[391119784,1760362190311,-298.91765228,0.00012435,2]
[391119785,1760362191685,-349.90434703,0.00012428,2]
[391119786,1760362197416,-206.12852006,0.00012428,2]
[391119787,1760362199474,-164.0,0.00012428,2]
[391119788,1760362216487,-187.66570108,0.00012428,2]
[391119789,1760362220820,-16.58817132,0.00012428,2]
[391119790,1760362220843,-199.90069159,0.00012434,2]
[391119791,1760362224506,-334.62198553,0.00012434,2]
[391119792,1760362226687,1000.0,0.0002876,120]
[391119793,1760362227335,1477.37263279,0.0002876,120]
[391119794,1760362228954,-311.15930322,0.00012434,2]
[391119807,1760362232114,-354.31801966,0.00012434,2]
[391119808,1760362232124,-8247.389091,0.00012435,2]
[391119809,1760362232135,-286.6042727,0.00012435,2]
[391119810,1760362232147,-405.95789884,0.00012435,2]
[391119811,1760362232196,-476.11117748,0.00012435,2]
[391119812,1760362232206,-57.39548824,0.00012495,2]
[391119813,1760362232218,-7731.85353363,0.00012495,2]
[391119816,1760362232384,-0.86587344,0.00012495,2]
[391119822,1760362238083,-531.63683674,0.00012495,2]
[391119823,1760362238194,-15474.61513259,0.00012495,2]
[391119829,1760362240127,-755.24672603,0.00012495,2]
[391119831,1760362242174,-1.6e-07,0.00012495,2]
[391119832,1760362242186,-386.9374211,0.00012495,2]
[391119838,1760362244449,-328704.28772577,0.00012495,2]
[391119839,1760362244459,-183.5548721,0.000125,2]
[391119840,1760362244468,-300.0,0.00012526,2]
[391119841,1760362244483,-46.15620594,0.00012527,2]
[391119842,1760362244493,-151.0,0.00012527,2]
[391119843,1760362244502,-151.0,0.00012527,2]
[391119844,1760362244511,-151.0,0.00012527,2]
[391119845,1760362244521,-151.0,0.00012527,2]
[391119846,1760362244530,-151.0,0.00012527,2]
[391119847,1760362244540,-151.0,0.00012527,2]
[391119848,1760362244549,-151.0,0.00012527,2]
[391119849,1760362244559,-151.0,0.00012527,2]
[391119850,1760362244568,-150.0,0.00012534,2]
[391119851,1760362244577,-500.0,0.00012534,2]
[391119852,1760362244586,-500.0,0.00012534,2]
[391119853,1760362244596,-500.0,0.00012534,2]
[391119854,1760362244605,-500.0,0.00012534,2]
[391119855,1760362244615,-500.0,0.00012534,2]
[391119856,1760362244624,-500.0,0.00012534,2]
[391119857,1760362244633,-153.19416684,0.00012534,2]
[391119858,1760362244642,-500.0,0.00012534,2]
[391119859,1760362244652,-500.0,0.00012534,2]
[391119860,1760362244661,-500.0,0.00012534,2]
[391119861,1760362244670,-500.0,0.00012534,2]
[391119862,1760362244679,-500.0,0.00012534,2]
[391119863,1760362244689,-500.0,0.00012534,2]
[391119864,1760362244699,-684034.55119255,0.00012535,2]
[391119865,1760362244797,-163.43238277,0.00012435,2]
[391119866,1760362244807,-14571.55472132,0.00012535,2]
[391119867,1760362244828,-11471.89869993,0.00012535,2]
[391119871,1760362246416,-203.8523834,0.00012535,2]
[391119874,1760362249762,-169.9905,0.00012535,2]
[391119875,1760362251177,-443.98837829,0.00012535,2]
[391119876,1760362253811,-197.05646547,0.00012535,2]
[391119877,1760362255804,-204.28624216,0.00012535,2]
[391119878,1760362261990,-398.98200939,0.00012435,2]
[391119879,1760362266215,-228.36034156,0.00012435,2]
[391119880,1760362269436,-352.71479876,0.00012435,2]
[391119881,1760362271322,-182.57138197,0.00012435,2]
[391119882,1760362282132,-222.18500337,0.00012435,2]
[391119883,1760362286664,-167.40642244,0.00012435,2]
[391119884,1760362288598,-161.20902467,0.00012435,2]
[391119885,1760362306759,-264.80179581,0.00012435,2]
[391119886,1760362307210,-304.8768,0.00012435,2]
[391119887,1760362307933,-906.49328245,0.00012435,2]
[391119888,1760362310932,-343.54822554,0.00012435,2]
[391119889,1760362317422,-212.71702174,0.00012435,2]
[391119893,1760362336414,-181.57736704,0.00012435,2]
[391119894,1760362338340,-241.39494732,0.00012435,2]
[391119895,1760362341540,-180.33112792,0.00012435,2]
[391119896,1760362344550,-186.83028726,0.00012435,2]
[391119897,1760362350693,-299.68180322,0.00012435,2]
[391119898,1760362366495,-307.284984,0.00012373,2]
[391119899,1760362366518,-123.91548495,0.00012435,2]
[391119900,1760362369046,-258.93908445,0.00012435,2]
[391119901,1760362371034,-250.0,0.00012435,2]
[391119902,1760362373967,-216.50315266,0.00012435,2]
[391119903,1760362375453,-238.86813299,0.00012435,2]
[391119904,1760362377264,-181.18192213,0.00012435,2]
[391119905,1760362380654,-319.07455646,0.00012435,2]
[391119906,1760362385750,-230.22,0.00012435,2]
[391119907,1760362388231,-406.094376,0.00012435,2]
[391119908,1760362390973,-340.50954408,0.00012435,2]
[391119909,1760362392897,-416.27045592,0.00012435,2]
[391119910,1760362399500,-158.6219773,0.00012435,2]
[391119911,1760362399530,-183.20918751,0.00012435,2]
[391119912,1760362399559,-36.03419944,0.00012435,2]
[391119913,1760362405558,-127.39818333,0.00012435,2]
[391119914,1760362405587,-382.90273223,0.00012481,2]
[391119916,1760362416155,1000.0,0.0002876,120]
[391119917,1760362416359,1274.87325733,0.0002876,120]
[391119918,1760362426432,-246.0,0.00012481,2]
[391119919,1760362429392,-475.0,0.00012481,2]
[391119920,1760362430892,-500.0,0.00012481,2]
[391119921,1760362436711,-258.2595874,0.00012419,2]
[391119922,1760362439629,-108.2747886,0.00012419,2]
[391119923,1760362439651,-203.94924472,0.00012481,2]
[391119924,1760362456426,-192.14802305,0.00012481,2]
[391119925,1760362456448,-52.80382455,0.00012527,2]
[391119926,1760362460518,-177.12372833,0.00012527,2]
[391119927,1760362465046,-92.83294074,0.00012527,2]
[391119928,1760362465071,-67.56586762,0.00012527,2]
[391119929,1760362469504,-83.43413238,0.00012527,2]
[391119930,1760362469526,-151.0,0.00012527,2]
[391119931,1760362469548,-67.56586762,0.00012533,2]
[391119932,1760362486418,-195.0,0.00012435,2]
[391119933,1760362489161,-225.8557453,0.00012435,2]
[391119935,1760362493629,-285.96282001,0.00012435,2]
[391119936,1760362496106,-240.6199804,0.00012435,2]
[391119937,1760362498088,-573.29468328,0.00012435,2]
[391119938,1760362501553,-209.4,0.00012434,2]
[391119939,1760362503988,-90.6,0.00012434,2]
[391119940,1760362504012,-116.28771,0.00012434,2]
[391119942,1760362509044,-183.71229,0.00012434,2]
[391119943,1760362509069,-243.84168517,0.00012434,2]
[391119944,1760362511507,-183.6694816,0.00012434,2]
[391119945,1760362515106,-201.99222168,0.00012434,2]
[391119946,1760362531385,-264.96629642,0.00012434,2]
[391119947,1760362533720,-217.84618646,0.00012434,2]
[391119948,1760362535559,-87.68412867,0.00012434,2]
[391119949,1760362535584,-130.08151303,0.00012435,2]
[391119950,1760362536461,190.0,0.000287,120]
[391119951,1760362536713,189.0,0.000287,120]
[391119952,1760362536999,-248.24443214,0.00012435,2]
[391119953,1760362537250,162.0,7.895e-05,2]
[391119954,1760362537533,155.0,7.895e-05,2]
[391119955,1760362537812,155.0,7.895e-05,2]
[391119956,1760362538055,155.0,7.895e-05,2]
[391119957,1760362538314,155.0,7.895e-05,2]
[391119958,1760362538580,155.0,7.895e-05,2]
[391119959,1760362538820,155.0,7.895e-05,2]
[391119960,1760362538996,-416.03084172,0.00012435,2]
[391119961,1760362539044,155.0,7.895e-05,2]
[391119962,1760362539605,155.0,7.895e-05,2]
[391119963,1760362539859,155.0,7.895e-05,2]
[391119964,1760362540150,155.0,7.895e-05,2]
[391119965,1760362540443,155.0,7.895e-05,2]
[391119966,1760362540746,155.0,7.895e-05,2]
[391119967,1760362541047,155.0,7.895e-05,2]
[391119968,1760362541306,155.0,7.895e-05,2]
[391119969,1760362542060,155.0,7.895e-05,2]
[391119970,1760362542092,-198.96136258,0.00012435,2]
[391119971,1760362542129,155.0,7.895e-05,2]
[391119972,1760362542275,155.0,7.895e-05,2]
[391119973,1760362542834,155.0,7.895e-05,2]
[391119974,1760362543677,155.0,7.895e-05,2]
[391119975,1760362543707,-181.32137211,0.00012435,2]
[391119976,1760362543747,155.0,7.895e-05,2]
[391119977,1760362543793,155.0,7.895e-05,2]
[391119978,1760362544017,155.0,7.895e-05,2]